[Event "Modransky Cup 2025"]
[Site "Modra"]
[Date "2025.02.21"]
[Round "2.6"]
[White "Chlpek, Daniel"]
[Black "Bucor, Mark"]
[Result "1/2-1/2"]
[Annotator "NA"]
[ECO "B13"]
[WhiteElo "2039"]
[BlackElo "1875"]
[PlyCount "78"]
[EventDate "2025.02.20"]
[EventCountry "SVK"]
[SourceTitle "playchess.com"]
[Source "ChessBase"]
[SourceQuality "1"]
[TimeControl "5400+30"]

1. e4 {[%emt 0:00:06]} c6 {[%emt 0:00:09]} 2. d4 {[%emt 0:00:08]} d5 {[%emt 0:00:06]} 3. exd5 {[%emt 0:00:07]} cxd5 {[%emt 0:00:10]} 4. Bd3 {[%emt 0:00:07]} Nf6 {[%emt 0:00:08]} 5. c3 {[%emt 0:00:22]} Nc6 {[%emt 0:03:33]} 6. h3 {[%emt 0:04:02]} g6 {[%emt 0:00:08]} 7. Bf4 {[%emt 0:00:12]} Bf5 {[%emt 0:02:11]} 8. Bxf5 {[%emt 0:00:08]} gxf5 {[%emt 0:00:07]} 9. Nf3 {[%emt 0:00:06]} Bg7 {[%emt 0:02:33]} 10. Ne5 {[%emt 0:01:35]} Qb6 {[%emt 0:08:47]} 11. Nd3 {[%emt 0:09:39]} Rc8 {[%emt 0:06:19]} 12. O-O {[%emt 0:03:15]} O-O {[%emt 0:02:49]} 13. Nd2 {[%emt 0:10:28]} Ne4 {[%emt 0:20:01]} 14. Qh5 {[%emt 0:07:38]} Qb5 {[%emt 0:32:25]} 15. Qf3 {[%emt 0:10:05]} e6 {[%emt 0:12:26]} 16. a4 {[%emt 0:07:24]} Qb6 {[%emt 0:00:30]} 17. Nxe4 {[%emt 0:00:30]} fxe4 {[%emt 0:00:30]} 18. Qg3 {[%emt 0:08:57]} Kh8 {[%emt 0:00:30]} 19. a5 {[%emt 0:04:04]} Qb5 {[%emt 0:00:11]} 20. Ne5 {[%emt 0:00:23]} Nxe5 {[%emt 0:00:20]} 21. Bxe5 {[%emt 0:01:43]} f6 {[%emt 0:00:20]} 22. Bd6 {[%emt 0:07:14]} Rf7 {[%emt 0:03:16]} 23. Qg4 {[%emt 0:00:56]} Qd7 {[%emt 0:00:41]} 24. Bc5 {[%emt 0:12:42]} Rg8 {[%emt 0:01:25]} 25. Qh4 {[%emt 0:01:40]} a6 {[%emt 0:00:30]} 26. Qf4 {[%emt 0:00:30]} f5 {[%emt 0:00:30]} 27. b3 {[%emt 0:00:30]} e5 {[%emt 0:00:07]} 28. dxe5 {[%emt 0:03:59]} Qe6 {[%emt 0:00:30]} 29. Kh1 {[%emt 0:00:30]} Bh6 {[%emt 0:00:30]} 30. Qh4 {[%emt 0:00:16]} Bg5 {[%emt 0:01:10]} 31. Qh5 {[%emt 0:00:20]} Rfg7 {[%emt 0:00:38]} 32. f4 {[%emt 0:02:02]} Bd8 {[%emt 0:00:50]} 33. Ra2 {[%emt 0:02:44]} Rg3 {[%emt 0:00:44]} 34. Bd4 {[%emt 0:02:24]} R8g6 {[%emt 0:00:23]} 35. Kh2 {[%emt 0:00:37]} Rd3 {[%emt 0:01:04]} 36. Rd1 {[%emt 0:00:30]} Rdg3 {[%emt 0:00:37]} 37. Rf1 {[%emt 0:00:30]} Rd3 {[%emt 0:00:49]} 38. Rd1 {[%emt 0:00:30]} Rdg3 {[%emt 0:00:29]} 39. Rf1 {[%emt 0:00:00]} Rd3 {[%emt 0:00:25]} 1/2-1/2

[Event "Modransky Cup 2025"]
[Site "Modra"]
[Date "2025.02.21"]
[Round "2.7"]
[White "Kukla, Tomas"]
[Black "Pongo, Aron"]
[Result "1-0"]
[Annotator "NA"]
[ECO "D38"]
[WhiteElo "1856"]
[BlackElo "2030"]
[PlyCount "76"]
[EventDate "2025.02.20"]
[EventCountry "SVK"]
[SourceTitle "playchess.com"]
[Source "ChessBase"]
[SourceQuality "1"]
[TimeControl "5400+30"]

1. d4 {[%emt 0:00:06]} Nf6 {[%emt 0:00:02]} 2. c4 {[%emt 0:00:20]} e6 {[%emt 0:00:05]} 3. Nf3 {[%emt 0:00:12]} d5 {[%emt 0:00:04]} 4. Nc3 {[%emt 0:00:12]} Bb4 {[%emt 0:00:18]} 5. Bg5 {[%emt 0:05:55]} h6 {[%emt 0:00:15]} 6. Bxf6 {[%emt 0:00:54]} Qxf6 {[%emt 0:00:05]} 7. e3 {[%emt 0:01:01]} O-O {[%emt 0:00:20]} 8. Bd3 {[%emt 0:01:53]} dxc4 {[%emt 0:00:19]} 9. Bxc4 {[%emt 0:00:07]} c5 {[%emt 0:03:31]} 10. a3 {[%emt 0:05:39]} cxd4 {[%emt 0:05:05]} 11. exd4 {[%emt 0:02:19]} Bxc3+ {[%emt 0:00:56]} 12. bxc3 {[%emt 0:00:06]} b6 {[%emt 0:05:40]} 13. O-O {[%emt 0:03:03]} Bb7 {[%emt 0:01:44]} 14. Ne5 {[%emt 0:06:04]} Rd8 {[%emt 0:01:49]} 15. f4 {[%emt 0:02:09]} Bd5 {[%emt 0:15:21]} 16. Bd3 {[%emt 0:05:03]} Nd7 {[%emt 0:03:40]} 17. Qh5 {[%emt 0:01:10]} Qe7 {[%emt 0:09:42]} 18. Rae1 {[%emt 0:16:31]} Nf6 {[%emt 0:04:11]} 19. Qh4 {[%emt 0:07:20]} Qb7 {[%emt 0:03:17]} 20. Re3 {[%emt 0:07:12]} Kf8 {[%emt 0:14:27]} 21. g4 {[%emt 0:14:56]} Nd7 {[%emt 0:23:59]} 22. f5 {[%emt 0:00:30]} Nxe5 {[%emt 0:00:01]} 23. Rxe5 {[%emt 0:01:28]} f6 {[%emt 0:00:45]} 24. fxe6 {[%emt 0:00:35]} Ke7 {[%emt 0:01:50]} 25. Re3 {[%emt 0:04:26]} Rac8 {[%emt 0:00:59]} 26. Qe1 {[%emt 0:00:52]} Qc7 {[%emt 0:01:28]} 27. Bb5 {[%emt 0:05:07]} Qd6 {[%emt 0:00:25]} 28. Bd7 {[%emt 0:00:53]} Rc7 {[%emt 0:00:19]} 29. a4 {[%emt 0:00:45]} Bb7 {[%emt 0:00:29]} 30. Rf5 {[%emt 0:02:19]} g6 {[%emt 0:01:15]} 31. Rxf6 {[%emt 0:03:45]} Kxf6 {[%emt 0:02:03]} 32. Qf2+ {[%emt 0:00:07]} Kg7 {[%emt 0:01:29]} 33. Qf7+ {[%emt 0:00:11]} Kh8 {[%emt 0:00:03]} 34. Rh3 {[%emt 0:00:32]} Qf8 {[%emt 0:01:02]} 35. Qxg6 {[%emt 0:00:54]} Qg7 {[%emt 0:00:14]} 36. Rxh6+ {[%emt 0:00:28]} Kg8 {[%emt 0:00:10]} 37. Qh5 {[%emt 0:01:12]} Be4 {[%emt 0:00:59]} 38. Rh8+ {[%emt 0:00:27]} Qxh8 {[%emt 0:00:08]} 1-0

[Event "Modransky Cup 2025"]
[Site "Modra"]
[Date "2025.02.21"]
[Round "2.8"]
[White "Iankin, Arseni"]
[Black "Osvald, David"]
[Result "1/2-1/2"]
[Annotator "NA RC"]
[ECO "B12"]
[WhiteElo "2016"]
[BlackElo "1852"]
[PlyCount "65"]
[EventDate "2025.02.20"]
[EventCountry "SVK"]
[SourceTitle "playchess.com"]
[Source "ChessBase"]
[SourceQuality "1"]
[TimeControl "5400+30"]

1. e4 {[%emt 0:00:10]} c6 {[%emt 0:01:52]} 2. d4 {[%emt 0:00:59]} d5 {[%emt 0:00:15]} 3. e5 {[%emt 0:00:05]} Bf5 {[%emt 0:00:11]} 4. h4 {[%emt 0:00:04]} h5 {[%emt 0:00:17]} 5. Bd3 {[%emt 0:00:07]} Bxd3 {[%emt 0:00:57]} 6. Qxd3 {[%emt 0:00:06]} Qa5+ {[%emt 0:00:25]} 7. b4 {[%emt 0:00:38]} Qxb4+ {[%emt 0:00:14]} 8. Nd2 {[%emt 0:00:22]} e6 {[%emt 0:00:25]} 9. Rb1 {[%emt 0:00:03]} Qe7 {[%emt 0:00:03]} 10. Ne2 {[%emt 0:03:41]} b5 {[%emt 0:01:07]} 11. a4 {[%emt 0:00:27]} a6 {[%emt 0:00:16]} 12. Nf3 {[%emt 0:03:44]} Qa7 {[%emt 0:03:11]} 13. Ng5 {[%emt 0:15:42]} Nh6 {[%emt 0:05:51]} 14. Nf4 {[%emt 0:15:05]} Nf5 {[%emt 0:05:10]} 15. c3 {[%emt 0:01:37]} Nd7 {[%emt 0:09:21]} 16. Rh3 {[%emt 0:06:33]} Nb6 {[%emt 0:05:45]} 17. axb5 {[%emt 0:08:11]} cxb5 {[%emt 0:04:25]} 18. Nxh5 {[%emt 0:03:48]} Rxh5 {[%emt 0:07:25]} 19. g4 {[%emt 0:00:19]} Rxg5 {[%emt 0:04:01]} 20. Bxg5 {[%emt 0:03:30]} Ne7 {[%emt 0:06:59]} 21. f4 {[%emt 0:01:02]} Qc7 {[%emt 0:11:38]} 22. f5 {[%emt 0:04:42]} Qc4 {[%emt 0:03:30]} 23. f6 {[%emt 0:07:42]} Qxd3 {[%emt 0:03:17]} 24. Rxd3 {[%emt 0:00:33]} Ng8 {[%emt 0:07:50]} 25. fxg7 {[%emt 0:14:04]} Bxg7 {[%emt 0:00:35]} 26. Rf3 {[%emt 0:00:02]} Nd7 {[%emt 0:01:26]} 27. Kd2 {[%emt 0:01:07]} f6 {[%emt 0:09:02]} 28. exf6 {[%emt 0:00:02]} Ngxf6 {[%emt 0:00:28]} 29. Bxf6 {[%emt 0:00:34]} Nxf6 {[%emt 0:00:12]} 30. Kd3 {[%emt 0:05:29]} Rc8 {[%emt 0:02:22]} 31. Ra1 {[%emt 0:02:37]} Rc6 {[%emt 0:00:48]} 32. Rf2 {[%emt 0:01:42]} Ne4 {[%emt 0:01:55]} 33. Rc2 {[%emt 0:00:06]} 1/2-1/2

[Event "Modransky Cup 2025"]
[Site "Modra"]
[Date "2025.02.21"]
[Round "2.9"]
[White "Grom, Stanislav"]
[Black "Durana, Jonas"]
[Result "0-1"]
[Annotator "NA RC"]
[ECO "D02"]
[WhiteElo "1846"]
[BlackElo "2006"]
[PlyCount "45"]
[EventDate "2025.02.20"]
[EventCountry "SVK"]
[SourceTitle "playchess.com"]
[Source "ChessBase"]
[SourceQuality "1"]
[TimeControl "5400+30"]

1. d4 {[%emt 0:00:09]} Nf6 {[%emt 0:00:04]} 2. Bf4 {[%emt 0:00:05]} e6 {[%emt 0:00:04]} 3. c3 {[%emt 0:00:14]} d5 {[%emt 0:00:06]} 4. e3 {[%emt 0:00:05]} Bd6 {[%emt 0:00:08]} 5. Bg3 {[%emt 0:00:08]} O-O {[%emt 0:00:06]} 6. Nf3 {[%emt 0:00:05]} c5 {[%emt 0:00:04]} 7. Bd3 {[%emt 0:00:22]} Qc7 {[%emt 0:00:03]} 8. O-O {[%emt 0:02:56]} Nbd7 {[%emt 0:00:23]} 9. Bxd6 {[%emt 0:01:31]} Qxd6 {[%emt 0:00:27]} 10. Nbd2 {[%emt 0:03:17]} e5 {[%emt 0:00:55]} 11. dxe5 {[%emt 0:00:13]} Nxe5 {[%emt 0:00:06]} 12. Nxe5 {[%emt 0:00:54]} Qxe5 {[%emt 0:00:05]} 13. Nf3 {[%emt 0:02:04]} Qc7 {[%emt 0:06:36]} 14. h3 {[%emt 0:03:02]} b6 {[%emt 0:01:32]} 15. Re1 {[%emt 0:05:22]} Bb7 {[%emt 0:00:19]} 16. Rc1 {[%emt 0:01:29]} Rad8 {[%emt 0:00:38]} 17. Qc2 {[%emt 0:05:25]} h6 {[%emt 0:04:05]} 18. b4 {[%emt 0:10:25]} g6 {[%emt 0:15:03]} 19. bxc5 {[%emt 0:04:59]} bxc5 {[%emt 0:00:10]} 20. c4 {[%emt 0:00:19]} d4 {[%emt 0:00:08]} 21. e4 {[%emt 0:16:28]} Nd7 {[%emt 0:07:46]} 22. e5 {[%emt 0:08:26]} Bxf3 {[%emt 0:00:36]} 23. Bxg6 {[%emt 0:01:28]} 0-1

[Event "Modransky Cup 2025"]
[Site "Modra"]
[Date "2025.02.21"]
[Round "2.10"]
[White "Meszaros, Casey Ryan"]
[Black "Ondreicka, Roman"]
[Result "1/2-1/2"]
[Annotator "RC"]
[ECO "B02"]
[WhiteElo "2003"]
[BlackElo "1842"]
[PlyCount "134"]
[EventDate "2025.02.20"]
[EventCountry "SVK"]
[SourceTitle "playchess.com"]
[Source "ChessBase"]
[SourceQuality "1"]
[TimeControl "5400+30"]

1. e4 {[%emt 0:01:21]} Nf6 {[%emt 0:00:11]} 2. Nc3 {[%emt 0:01:54]} d5 {[%emt 0:00:04]} 3. exd5 {[%emt 0:00:40]} Nxd5 {[%emt 0:00:05]} 4. g3 {[%emt 0:03:57]} Nxc3 {[%emt 0:00:41]} 5. bxc3 {[%emt 0:01:17]} g6 {[%emt 0:00:22]} 6. Bg2 {[%emt 0:00:25]} Bg7 {[%emt 0:00:06]} 7. Rb1 {[%emt 0:01:06]} c6 {[%emt 0:00:12]} 8. Ne2 {[%emt 0:00:58]} O-O {[%emt 0:00:18]} 9. d4 {[%emt 0:02:11]} Nd7 {[%emt 0:01:40]} 10. Be3 {[%emt 0:06:48]} Nb6 {[%emt 0:01:21]} 11. O-O {[%emt 0:14:01]} Be6 {[%emt 0:06:19]} 12. a3 {[%emt 0:02:36]} Bc4 {[%emt 0:15:15]} 13. Re1 {[%emt 0:01:58]} Qd7 {[%emt 0:00:57]} 14. Nf4 {[%emt 0:06:34]} Nd5 {[%emt 0:01:20]} 15. Qd2 {[%emt 0:01:28]} Nxf4 {[%emt 0:01:00]} 16. Bxf4 {[%emt 0:00:17]} b5 {[%emt 0:10:07]} 17. Qe3 {[%emt 0:05:28]} e6 {[%emt 0:03:09]} 18. h4 {[%emt 0:01:41]} Bd5 {[%emt 0:01:14]} 19. h5 {[%emt 0:15:43]} Rae8 {[%emt 0:03:47]} 20. Bf1 {[%emt 0:07:03]} f6 {[%emt 0:06:22]} 21. hxg6 {[%emt 0:01:32]} hxg6 {[%emt 0:00:24]} 22. c4 {[%emt 0:07:27]} bxc4 {[%emt 0:01:13]} 23. Qc3 {[%emt 0:07:55]} g5 {[%emt 0:04:33]} 24. Bd2 {[%emt 0:00:46]} Kf7 {[%emt 0:02:45]} 25. Bxc4 {[%emt 0:00:50]} Rh8 {[%emt 0:01:05]} 26. f3 {[%emt 0:04:27]} Rh3 {[%emt 0:08:16]} 27. Bxd5 {[%emt 0:00:53]} Qxd5 {[%emt 0:00:27]} 28. Kg2 {[%emt 0:01:45]} Reh8 {[%emt 0:01:05]} 29. Rh1 {[%emt 0:00:55]} g4 {[%emt 0:00:59]} 30. Rxh3 {[%emt 0:00:26]} Rxh3 {[%emt 0:04:57]} 31. Rb7+ {[%emt 0:00:22]} Kg6 {[%emt 0:00:18]} 32. Qd3+ {[%emt 0:00:06]} f5 {[%emt 0:00:15]} 33. Bc3 {[%emt 0:01:09]} Qd6 {[%emt 0:04:42]} 34. Be1 {[%emt 0:00:44]} Qxd4 {[%emt 0:00:29]} 35. Qxd4 {[%emt 0:00:26]} Bxd4 {[%emt 0:00:09]} 36. Rc7 {[%emt 0:00:17]} Rh8 {[%emt 0:02:36]} 37. Rxc6 {[%emt 0:00:25]} gxf3+ {[%emt 0:00:33]} 38. Kxf3 {[%emt 0:00:14]} Kf6 {[%emt 0:00:37]} 39. Rc4 {[%emt 0:00:30]} Be5 {[%emt 0:00:30]} 40. Ra4 {[%emt 0:00:30]} Rh7 {[%emt 0:03:08]} 41. Bf2 {[%emt 0:00:23]} Bb8 {[%emt 0:00:31]} 42. Ra6 {[%emt 0:00:29]} Re7 {[%emt 0:02:39]} 43. c4 {[%emt 0:01:07]} Rb7 {[%emt 0:02:52]} 44. c5 {[%emt 0:00:27]} Rb3+ {[%emt 0:00:05]} 45. Kg2 {[%emt 0:00:36]} Rb2 {[%emt 0:00:28]} 46. Kf1 {[%emt 0:00:19]} Rc2 {[%emt 0:00:43]} 47. Bd4+ {[%emt 0:00:13]} Ke7 {[%emt 0:00:30]} 48. Bf2 {[%emt 0:00:46]} Kd7 {[%emt 0:00:47]} 49. Ra4 {[%emt 0:00:40]} Ke7 {[%emt 0:01:39]} 50. Rh4 {[%emt 0:00:16]} Rc3 {[%emt 0:02:53]} 51. Bd4 {[%emt 0:00:34]} Rxg3 {[%emt 0:04:21]} 52. Rh7+ {[%emt 0:00:17]} Kf8 {[%emt 0:00:28]} 53. Rb7 {[%emt 0:00:47]} Bf4 {[%emt 0:01:10]} 54. Rxa7 {[%emt 0:00:40]} e5 {[%emt 0:00:27]} 55. Bf2 {[%emt 0:00:27]} Rc3 {[%emt 0:00:35]} 56. Rh7 {[%emt 0:00:32]} Rc1+ {[%emt 0:01:58]} 57. Kg2 {[%emt 0:00:14]} Rc2 {[%emt 0:00:20]} 58. Rh5 {[%emt 0:00:17]} Ke7 {[%emt 0:01:32]} 59. Rxf5 {[%emt 0:00:11]} Ra2 {[%emt 0:00:47]} 60. c6 {[%emt 0:00:56]} Kd6 {[%emt 0:00:21]} 61. Rf6+ {[%emt 0:00:11]} Kc7 {[%emt 0:00:09]} 62. Kf3 {[%emt 0:00:34]} Rxa3+ {[%emt 0:00:10]} 63. Ke4 {[%emt 0:00:14]} Ra4+ {[%emt 0:00:26]} 64. Kd5 {[%emt 0:00:14]} Ra5+ {[%emt 0:00:32]} 65. Kc4 {[%emt 0:00:38]} Ra1 {[%emt 0:00:56]} 66. Kd5 {[%emt 0:01:26]} Rd1+ {[%emt 0:00:21]} 67. Ke4 {[%emt 0:00:14]} Rc1 {[%emt 0:01:11]} 1/2-1/2

[Event "Modransky Cup 2025"]
[Site "Modra"]
[Date "2025.02.21"]
[Round "2.11"]
[White "Pisarcik, Richard"]
[Black "Janik, Marek Tobias"]
[Result "0-1"]
[Annotator "RC"]
[ECO "C00"]
[WhiteElo "1837"]
[BlackElo "2002"]
[PlyCount "106"]
[EventDate "2025.02.20"]
[EventCountry "SVK"]
[SourceTitle "playchess.com"]
[Source "ChessBase"]
[SourceQuality "1"]
[TimeControl "5400+30"]

1. e4 {[%emt 0:00:24]} c5 {[%emt 0:00:05]} 2. Nf3 {[%emt 0:00:06]} a6 {[%emt 0:00:11]} 3. b4 {[%emt 0:04:41]} cxb4 {[%emt 0:04:43]} 4. a3 {[%emt 0:01:48]} e6 {[%emt 0:01:45]} 5. axb4 {[%emt 0:02:33]} Bxb4 {[%emt 0:00:07]} 6. c3 {[%emt 0:00:44]} Be7 {[%emt 0:00:04]} 7. d4 {[%emt 0:00:45]} d5 {[%emt 0:00:11]} 8. e5 {[%emt 0:00:30]} Nc6 {[%emt 0:00:10]} 9. Bd3 {[%emt 0:01:03]} Bd7 {[%emt 0:16:55]} 10. Ba3 {[%emt 0:05:48]} Rc8 {[%emt 0:10:17]} 11. O-O {[%emt 0:04:33]} Na7 {[%emt 0:06:14]} 12. Bxe7 {[%emt 0:02:29]} Qxe7 {[%emt 0:03:07]} 13. Qd2 {[%emt 0:02:35]} Bb5 {[%emt 0:00:22]} 14. Na3 {[%emt 0:00:40]} Bxd3 {[%emt 0:00:57]} 15. Qxd3 {[%emt 0:00:07]} Qc7 {[%emt 0:02:31]} 16. Rfc1 {[%emt 0:02:47]} Ne7 {[%emt 0:00:16]} 17. h4 {[%emt 0:01:08]} b5 {[%emt 0:05:58]} 18. Nb1 {[%emt 0:04:15]} Qb6 {[%emt 0:01:33]} 19. Ng5 {[%emt 0:02:21]} h6 {[%emt 0:03:11]} 20. Nf3 {[%emt 0:04:04]} Nec6 {[%emt 0:05:20]} 21. Nbd2 {[%emt 0:01:01]} Na5 {[%emt 0:15:11]} 22. g4 {[%emt 0:02:51]} N7c6 {[%emt 0:00:45]} 23. g5 {[%emt 0:01:58]} hxg5 {[%emt 0:01:10]} 24. hxg5 {[%emt 0:01:03]} g6 {[%emt 0:00:04]} 25. Nh2 {[%emt 0:01:37]} Rh5 {[%emt 0:00:57]} 26. Qe3 {[%emt 0:01:33]} Qd8 {[%emt 0:00:53]} 27. f4 {[%emt 0:02:52]} Ke7 {[%emt 0:01:09]} 28. Ng4 {[%emt 0:00:26]} Qh8 {[%emt 0:01:04]} 29. Nh6 {[%emt 0:00:30]} Qg7 {[%emt 0:00:47]} 30. Kg2 {[%emt 0:00:44]} Rb8 {[%emt 0:04:39]} 31. Rh1 {[%emt 0:00:45]} Rxh1 {[%emt 0:00:07]} 32. Rxh1 {[%emt 0:00:17]} b4 {[%emt 0:01:09]} 33. cxb4 {[%emt 0:00:34]} Rxb4 {[%emt 0:00:05]} 34. Qc3 {[%emt 0:07:01]} Rxd4 {[%emt 0:03:16]} 35. Qc5+ {[%emt 0:00:33]} Ke8 {[%emt 0:00:08]} 36. Nf3 {[%emt 0:02:15]} Rxf4 {[%emt 0:02:50]} 37. Ra1 {[%emt 0:02:47]} Rc4 {[%emt 0:03:06]} 38. Qd6 {[%emt 0:01:09]} Qf8 {[%emt 0:01:37]} 39. Qc7 {[%emt 0:02:37]} Qe7 {[%emt 0:00:42]} 40. Qxe7+ {[%emt 0:00:44]} Kxe7 {[%emt 0:00:09]} 41. Ng8+ {[%emt 0:00:20]} Kd8 {[%emt 0:00:30]} 42. Nh6 {[%emt 0:00:23]} Ke8 {[%emt 0:00:16]} 43. Rf1 {[%emt 0:00:20]} Rc2+ {[%emt 0:00:16]} 44. Kg3 {[%emt 0:00:14]} Rc3 {[%emt 0:00:39]} 45. Kh2 {[%emt 0:00:56]} Nd8 {[%emt 0:02:50]} 46. Nh4 {[%emt 0:01:00]} Nac6 {[%emt 0:02:13]} 47. Ng4 {[%emt 0:00:22]} Kd7 {[%emt 0:00:59]} 48. Nf6+ {[%emt 0:00:46]} Kc8 {[%emt 0:00:05]} 49. Nf3 {[%emt 0:00:10]} Re3 {[%emt 0:00:57]} 50. Ng4 {[%emt 0:01:10]} Re2+ {[%emt 0:00:27]} 51. Kg3 {[%emt 0:00:42]} a5 {[%emt 0:00:30]} 52. Rc1 {[%emt 0:00:31]} Kb7 {[%emt 0:00:15]} 53. Rb1+ {[%emt 0:00:37]} Ka6 {[%emt 0:00:22]} 0-1

[Event "Modransky Cup 2025"]
[Site "Modra"]
[Date "2025.02.21"]
[Round "2.12"]
[White "Banas, Samuel"]
[Black "Rozboril, Alex"]
[Result "0-1"]
[Annotator "NA RC"]
[ECO "B31"]
[WhiteElo "1617"]
[BlackElo "1633"]
[PlyCount "57"]
[EventDate "2025.02.20"]
[EventCountry "SVK"]
[SourceTitle "playchess.com"]
[Source "ChessBase"]
[SourceQuality "1"]
[TimeControl "5400+30"]

1. e4 {[%emt 0:05:18]} c5 {[%emt 0:00:09]} 2. Nf3 {[%emt 0:00:24]} Nc6 {[%emt 0:00:14]} 3. c3 {[%emt 0:00:09]} g6 {[%emt 0:02:18]} 4. Bb5 {[%emt 0:00:47]} Bg7 {[%emt 0:02:57]} 5. d4 {[%emt 0:01:33]} cxd4 {[%emt 0:00:43]} 6. cxd4 {[%emt 0:00:06]} Nf6 {[%emt 0:05:57]} 7. Nc3 {[%emt 0:01:14]} a6 {[%emt 0:08:17]} 8. Ba4 {[%emt 0:00:11]} e6 {[%emt 0:03:03]} 9. Bg5 {[%emt 0:02:02]} Qa5 {[%emt 0:11:21]} 10. O-O {[%emt 0:01:54]} d5 {[%emt 0:08:34]} 11. Bc2 {[%emt 0:05:18]} O-O {[%emt 0:12:22]} 12. e5 {[%emt 0:07:49]} Nd7 {[%emt 0:02:17]} 13. Rc1 {[%emt 0:01:11]} b5 {[%emt 0:02:55]} 14. a3 {[%emt 0:01:08]} Nb6 {[%emt 0:02:29]} 15. Bd3 {[%emt 0:06:01]} Nc4 {[%emt 0:02:33]} 16. Bxc4 {[%emt 0:00:29]} bxc4 {[%emt 0:00:23]} 17. Na4 {[%emt 0:00:29]} Rb8 {[%emt 0:01:35]} 18. Qc2 {[%emt 0:01:33]} Bd7 {[%emt 0:06:09]} 19. Nc5 {[%emt 0:01:30]} Nxd4 {[%emt 0:01:02]} 20. Nxd4 {[%emt 0:01:31]} Qxc5 {[%emt 0:00:28]} 21. Be3 {[%emt 0:00:13]} Qb6 {[%emt 0:03:04]} 22. Nf3 {[%emt 0:02:44]} Qxb2 {[%emt 0:00:22]} 23. Qxb2 {[%emt 0:00:08]} Rxb2 {[%emt 0:00:08]} 24. Rb1 {[%emt 0:01:32]} Rfb8 {[%emt 0:01:04]} 25. Rxb2 {[%emt 0:00:17]} Rxb2 {[%emt 0:00:07]} 26. Rc1 {[%emt 0:01:17]} Ra2 {[%emt 0:01:27]} 27. Bc5 {[%emt 0:00:28]} Bf8 {[%emt 0:00:40]} 28. Bxf8 {[%emt 0:00:06]} Kxf8 {[%emt 0:00:12]} 29. Rc3 {[%emt 0:00:04]} 0-1

[Event "Modransky Cup 2025"]
[Site "Modra"]
[Date "2025.02.21"]
[Round "2.13"]
[White "Krajnak, Robert"]
[Black "Povysil, Peter"]
[Result "1/2-1/2"]
[Annotator "NA"]
[ECO "A10"]
[WhiteElo "1921"]
[BlackElo "1890"]
[PlyCount "97"]
[EventDate "2025.02.20"]
[EventCountry "SVK"]
[SourceTitle "playchess.com"]
[Source "ChessBase"]
[SourceQuality "1"]
[TimeControl "5400+30"]

1. c4 {[%emt 0:07:56]} f5 {[%emt 0:00:08]} 2. g3 {[%emt 0:00:45]} Nf6 {[%emt 0:00:07]} 3. Bg2 {[%emt 0:00:11]} e6 {[%emt 0:05:05]} 4. Nf3 {[%emt 0:00:45]} c6 {[%emt 0:02:12]} 5. O-O {[%emt 0:00:31]} d5 {[%emt 0:00:04]} 6. b3 {[%emt 0:00:43]} Bd6 {[%emt 0:00:23]} 7. Ba3 {[%emt 0:01:11]} Bxa3 {[%emt 0:00:45]} 8. Nxa3 {[%emt 0:00:01]} Qe7 {[%emt 0:00:14]} 9. Nc2 {[%emt 0:00:32]} e5 {[%emt 0:00:08]} 10. d4 {[%emt 0:07:43]} e4 {[%emt 0:02:12]} 11. Ne5 {[%emt 0:02:11]} O-O {[%emt 0:00:43]} 12. e3 {[%emt 0:02:32]} Nbd7 {[%emt 0:00:53]} 13. Nxd7 {[%emt 0:01:28]} Bxd7 {[%emt 0:00:27]} 14. c5 {[%emt 0:00:12]} Kh8 {[%emt 0:01:34]} 15. Qd2 {[%emt 0:04:25]} Rf7 {[%emt 0:04:15]} 16. b4 {[%emt 0:02:21]} g5 {[%emt 0:02:31]} 17. f4 {[%emt 0:05:41]} exf3 {[%emt 0:02:03]} 18. Bxf3 {[%emt 0:00:05]} Ne4 {[%emt 0:01:31]} 19. Qg2 {[%emt 0:00:28]} Rg8 {[%emt 0:03:44]} 20. Bxe4 {[%emt 0:01:46]} dxe4 {[%emt 0:00:16]} 21. Rae1 {[%emt 0:01:58]} Be6 {[%emt 0:06:46]} 22. d5 {[%emt 0:01:10]} Bxd5 {[%emt 0:00:39]} 23. Nd4 {[%emt 0:00:08]} f4 {[%emt 0:00:27]} 24. Qb2 {[%emt 0:02:25]} Qe5 {[%emt 0:03:50]} 25. g4 {[%emt 0:00:58]} h5 {[%emt 0:01:05]} 26. h3 {[%emt 0:00:46]} f3 {[%emt 0:00:28]} 27. Qh2 {[%emt 0:01:18]} Qxh2+ {[%emt 0:06:55]} 28. Kxh2 {[%emt 0:00:02]} Bxa2 {[%emt 0:05:33]} 29. Ra1 {[%emt 0:00:19]} Bc4 {[%emt 0:00:26]} 30. Rf2 {[%emt 0:00:30]} a6 {[%emt 0:00:15]} 31. Nf5 {[%emt 0:00:00]} Rh7 {[%emt 0:15:04]} 32. Kg3 {[%emt 0:00:26]} h4+ {[%emt 0:00:41]} 33. Kh2 {[%emt 0:00:11]} Rd7 {[%emt 0:04:43]} 34. Nd6 {[%emt 0:00:15]} Bd3 {[%emt 0:00:04]} 35. Rd2 {[%emt 0:00:49]} Re7 {[%emt 0:02:59]} 36. Kg1 {[%emt 0:00:21]} Rb8 {[%emt 0:05:09]} 37. Nf5 {[%emt 0:01:13]} Rf7 {[%emt 0:02:33]} 38. Nd4 {[%emt 0:01:28]} Rf6 {[%emt 0:02:23]} 39. Rc1 {[%emt 0:03:26]} b6 {[%emt 0:01:08]} 40. Kf2 {[%emt 0:03:21]} bxc5 {[%emt 0:00:55]} 41. bxc5 {[%emt 0:00:22]} Kg8 {[%emt 0:04:38]} 42. Nf5 {[%emt 0:02:40]} Kf8 {[%emt 0:00:42]} 43. Ra1 {[%emt 0:00:43]} Rf7 {[%emt 0:06:13]} 44. Nd6 {[%emt 0:01:20]} Ra7 {[%emt 0:00:07]} 45. Nf5 {[%emt 0:03:14]} a5 {[%emt 0:00:36]} 46. Nd4 {[%emt 0:00:11]} Ra6 {[%emt 0:00:18]} 47. Nxf3 {[%emt 0:00:19]} Kg7 {[%emt 0:01:40]} 48. Nxg5 {[%emt 0:02:01]} Kf6 {[%emt 0:00:34]} 49. Nf3 {[%emt 0:00:11]} 1/2-1/2